[Event "*** Titled Tuesday 3|2 Blitz"]
[Site "Chess.com"]
[Date "2016.07.05"]
[Round "8"]
[White "daro94"]
[Black "Frolyanov_D"]
[Result "1-0"]
[WhiteElo "2638"]
[BlackElo "2464"]
[TimeControl "180+2"]
[EndTime "12:42:51 PDT"]
[Termination "daro94 won on time"]

1. e4 {[%clk 0:03:00.4]} 1... e5 {[%clk 0:03:00.9]} 2. Nf3 {[%clk 0:03:01.6]}
2... Nf6 {[%clk 0:03:01.9]} 3. Nxe5 {[%clk 0:02:59.2]} 3... d6 {[%clk
0:03:02.7]} 4. Nf3 {[%clk 0:03:00.6]} 4... Nxe4 {[%clk 0:03:03.7]} 5. d4 {[%clk
0:03:02.1]} 5... d5 {[%clk 0:03:04.4]} 6. Bd3 {[%clk 0:03:03.5]} 6... Bd6 {[%clk
0:03:05.8]} 7. O-O {[%clk 0:02:59.2]} 7... O-O {[%clk 0:03:06.3]} 8. Nbd2 {[%clk
0:02:54.1]} 8... Bf5 {[%clk 0:03:03.1]} 9. Re1 {[%clk 0:02:49.3]} 9... Re8
{[%clk 0:03:03.5]} 10. Ne5 {[%clk 0:02:05]} 10... Nd7 {[%clk 0:02:45.8]} 11.
Nxe4 {[%clk 0:01:48.6]} 11... dxe4 {[%clk 0:02:45.5]} 12. Bxe4 {[%clk
0:01:44.1]} 12... Bxe4 {[%clk 0:02:37]} 13. Rxe4 {[%clk 0:01:44.3]} 13... f6
{[%clk 0:02:14.2]} 14. f4 {[%clk 0:01:04.1]} 14... Nf8 {[%clk 0:01:47.2]} 15.
Qd3 {[%clk 0:00:52.3]} 15... fxe5 {[%clk 0:01:43.4]} 16. fxe5 {[%clk 0:00:54.2]}
16... Be7 {[%clk 0:01:43]} 17. Be3 {[%clk 0:00:51.6]} 17... c6 {[%clk
0:01:40.5]} 18. c4 {[%clk 0:00:44]} 18... Bg5 {[%clk 0:01:40.3]} 19. d5 {[%clk
0:00:35]} 19... Bxe3+ {[%clk 0:01:29.1]} 20. Rxe3 {[%clk 0:00:36.4]} 20... cxd5
{[%clk 0:01:27.2]} 21. cxd5 {[%clk 0:00:38.3]} 21... Ng6 {[%clk 0:01:23.4]} 22.
Rae1 {[%clk 0:00:38.5]} 22... Qb6 {[%clk 0:00:56.9]} 23. Kh1 {[%clk 0:00:34.7]}
23... Rac8 {[%clk 0:00:52.6]} 24. d6 {[%clk 0:00:32.5]} 24... Nxe5 {[%clk
0:00:24.8]} 25. Qd5+ {[%clk 0:00:27.6]} 25... Kh8 {[%clk 0:00:20.9]} 26. d7
{[%clk 0:00:20.4]} 26... Qxe3 {[%clk 0:00:03.5]} 27. dxe8=Q+ {[%clk 0:00:20.5]}
1-0

[Event "*** Titled Tuesday 3|2 Blitz"]
[Site "Chess.com"]
[Date "2016.07.05"]
[Round "8"]
[White "Gajuchess"]
[Black "Zhani-Z"]
[Result "0-1"]
[WhiteElo "2514"]
[BlackElo "2282"]
[TimeControl "180+2"]
[EndTime "12:43:00 PDT"]
[Termination "Zhani-Z won by resignation"]

1. e4 {[%clk 0:03:00]} 1... e5 {[%clk 0:03:00.6]} 2. f4 {[%clk 0:03:00.6]} 2...
exf4 {[%clk 0:03:00]} 3. Nf3 {[%clk 0:03:01.9]} 3... g5 {[%clk 0:02:57.8]} 4.
Nc3 {[%clk 0:03:03]} 4... Bg7 {[%clk 0:02:56.6]} 5. Bc4 {[%clk 0:03:02.5]} 5...
d6 {[%clk 0:02:56.2]} 6. d4 {[%clk 0:03:02.9]} 6... Nc6 {[%clk 0:02:48.9]} 7.
O-O {[%clk 0:03:00.6]} 7... h6 {[%clk 0:02:45.8]} 8. g3 {[%clk 0:02:58.9]} 8...
g4 {[%clk 0:02:34.9]} 9. Bxf4 {[%clk 0:02:57.1]} 9... gxf3 {[%clk 0:02:34.5]}
10. Bxf7+ {[%clk 0:02:53.2]} 10... Kxf7 {[%clk 0:02:34.2]} 11. Qxf3 {[%clk
0:02:55.1]} 11... Nf6 {[%clk 0:02:23.9]} 12. Nd5 {[%clk 0:02:39.1]} 12... Kg8
{[%clk 0:02:20.7]} 13. Qb3 {[%clk 0:02:31.7]} 13... Nxd5 {[%clk 0:01:59.1]} 14.
Qxd5+ {[%clk 0:02:32.4]} 14... Kh7 {[%clk 0:02:00.6]} 15. Rad1 {[%clk
0:02:16.8]} 15... Qe7 {[%clk 0:02:00.7]} 16. e5 {[%clk 0:02:17.3]} 16... dxe5
{[%clk 0:01:53.4]} 17. Qe4+ {[%clk 0:02:18]} 17... Kg8 {[%clk 0:01:53.6]} 18.
dxe5 {[%clk 0:02:17.2]} 18... Be6 {[%clk 0:01:54]} 19. c4 {[%clk 0:02:08.8]}
19... Qc5+ {[%clk 0:01:47.3]} 20. Rf2 {[%clk 0:02:05.1]} 20... Qxc4 {[%clk
0:01:45.1]} 21. Qg6 {[%clk 0:02:04.2]} 21... Bf7 {[%clk 0:01:36.6]} 22. Qg4
{[%clk 0:02:01.9]} 22... Qe6 {[%clk 0:01:36.8]} 23. Qh4 {[%clk 0:01:55.2]} 23...
Kh7 {[%clk 0:01:24.2]} 24. Bg5 {[%clk 0:01:46.6]} 24... Qxe5 {[%clk 0:00:38.1]}
25. Bxh6 {[%clk 0:01:30.5]} 25... Kg8 {[%clk 0:00:32]} 26. Bxg7 {[%clk
0:01:25.4]} 26... Qxg7 {[%clk 0:00:30.5]} 27. Qf4 {[%clk 0:01:24.9]} 27... Ne5
{[%clk 0:00:12.9]} 28. Rdf1 {[%clk 0:01:21.9]} 28... Re8 {[%clk 0:00:12.6]} 29.
h4 {[%clk 0:01:21.3]} 29... Bd5 {[%clk 0:00:13]} 30. Rd1 {[%clk 0:01:08.6]}
30... c6 {[%clk 0:00:13.7]} 31. Kf1 {[%clk 0:01:08.1]} 31... Rh6 {[%clk
0:00:13.8]} 32. Re1 {[%clk 0:01:07.7]} 32... Rhe6 {[%clk 0:00:14.2]} 33. h5
{[%clk 0:01:08]} 33... Ng4 {[%clk 0:00:15]} 34. h6 {[%clk 0:01:07.1]} 34... Qg6
{[%clk 0:00:14.2]} 35. h7+ {[%clk 0:01:04.1]} 35... Kxh7 {[%clk 0:00:13.9]} 36.
Rxe6 {[%clk 0:01:04.3]} 36... Qxe6 {[%clk 0:00:13.7]} 37. Qd2 {[%clk 0:01:03.2]}
37... Nxf2 {[%clk 0:00:14]} 38. b4 {[%clk 0:01:03.2]} 38... Ne4 {[%clk
0:00:13.7]} 39. Qh6+ {[%clk 0:01:01.6]} 39... Qxh6 {[%clk 0:00:13.9]} 0-1

[Event "*** Titled Tuesday 3|2 Blitz"]
[Site "Chess.com"]
[Date "2016.07.05"]
[Round "8"]
[White "Ginger_GM"]
[Black "macko06"]
[Result "0-1"]
[WhiteElo "2479"]
[BlackElo "2253"]
[TimeControl "180+2"]
[EndTime "12:43:09 PDT"]
[Termination "macko06 won by resignation"]

1. h4 {[%clk 0:03:01.9]} 1... d5 {[%clk 0:02:59.8]} 2. h5 {[%clk 0:03:02.3]}
2... h6 {[%clk 0:03:00.9]} 3. c4 {[%clk 0:03:02.1]} 3... e6 {[%clk 0:03:00.7]}
4. d4 {[%clk 0:03:01.5]} 4... Nf6 {[%clk 0:03:01.2]} 5. Nf3 {[%clk 0:03:01.9]}
5... Be7 {[%clk 0:02:59.9]} 6. Nc3 {[%clk 0:03:02.6]} 6... Nbd7 {[%clk
0:03:00.5]} 7. Bf4 {[%clk 0:03:02.2]} 7... c6 {[%clk 0:03:01.1]} 8. e3 {[%clk
0:03:03.1]} 8... b6 {[%clk 0:03:00.1]} 9. Qc2 {[%clk 0:03:03.7]} 9... Bb7 {[%clk
0:03:01.1]} 10. O-O-O {[%clk 0:03:04.4]} 10... Qc8 {[%clk 0:02:59.6]} 11. Kb1
{[%clk 0:03:04.9]} 11... dxc4 {[%clk 0:02:58.8]} 12. Bxc4 {[%clk 0:03:05.1]}
12... c5 {[%clk 0:02:59.7]} 13. d5 {[%clk 0:03:05.7]} 13... exd5 {[%clk
0:03:00]} 14. Nxd5 {[%clk 0:03:06.7]} 14... Nxd5 {[%clk 0:03:01.3]} 15. Bxd5
{[%clk 0:03:07.5]} 15... Bxd5 {[%clk 0:03:02.9]} 16. Rxd5 {[%clk 0:03:08.5]}
16... Nf6 {[%clk 0:03:02.9]} 17. Re5 {[%clk 0:03:09.7]} 17... Ng4 {[%clk
0:02:54.3]} 18. Re4 {[%clk 0:02:57.8]} 18... Nf6 {[%clk 0:02:54.4]} 19. Rd1
{[%clk 0:02:51.7]} 19... Nxe4 {[%clk 0:02:50.2]} 20. Qxe4 {[%clk 0:02:53.6]}
20... Kf8 {[%clk 0:02:45.1]} 21. Ne5 {[%clk 0:02:52.9]} 21... Qe8 {[%clk
0:02:37.2]} 22. Nc6 {[%clk 0:02:37.9]} 22... Bf6 {[%clk 0:02:27.9]} 23. Qd5
{[%clk 0:02:05.1]} 23... Qe6 {[%clk 0:02:20.7]} 24. Bd6+ {[%clk 0:02:04.7]}
24... Kg8 {[%clk 0:02:15.3]} 25. e4 {[%clk 0:01:43.3]} 25... Qxd5 {[%clk
0:02:13.2]} 26. Rxd5 {[%clk 0:01:43.9]} 26... Kh7 {[%clk 0:02:12.9]} 27. e5
{[%clk 0:01:44.3]} 27... Bg5 {[%clk 0:02:08.4]} 28. b4 {[%clk 0:01:43.6]} 28...
cxb4 {[%clk 0:02:08.6]} 29. g3 {[%clk 0:01:43.6]} 29... Rhe8 {[%clk 0:01:59.4]}
30. f4 {[%clk 0:01:43.9]} 30... Bd8 {[%clk 0:02:00.2]} 31. Nxb4 {[%clk
0:01:42.6]} 31... Be7 {[%clk 0:01:58.9]} 32. Nc6 {[%clk 0:01:42.2]} 32... Bf8
{[%clk 0:01:55.2]} 33. g4 {[%clk 0:01:39.5]} 33... Rac8 {[%clk 0:01:43.5]} 34.
Nxa7 {[%clk 0:01:39.8]} 34... Rc4 {[%clk 0:01:44.4]} 35. f5 {[%clk 0:01:25.7]}
35... Rxg4 {[%clk 0:01:31.5]} 36. Nc6 {[%clk 0:01:24.7]} 36... Rc4 {[%clk
0:01:29.8]} 37. Nd4 {[%clk 0:01:24]} 37... Bxd6 {[%clk 0:01:18]} 38. exd6 {[%clk
0:01:24.8]} 38... Rd8 {[%clk 0:01:10.4]} 39. Ne6 {[%clk 0:01:17.9]} 39... fxe6
{[%clk 0:00:56.8]} 40. fxe6 {[%clk 0:01:18.9]} 40... Re4 {[%clk 0:00:56.6]} 41.
e7 {[%clk 0:01:20.1]} 41... Rd7 {[%clk 0:00:56.7]} 42. Kc2 {[%clk 0:01:14.7]}
42... Re6 {[%clk 0:00:40.8]} 43. Kc3 {[%clk 0:01:12.1]} 43... Kg8 {[%clk
0:00:20.2]} 44. Kc4 {[%clk 0:01:13.2]} 44... Kf7 {[%clk 0:00:21.2]} 45. Rf5+
{[%clk 0:01:11.4]} 45... Rf6 {[%clk 0:00:22.6]} 46. Rxf6+ {[%clk 0:01:11.6]}
46... gxf6 {[%clk 0:00:23.7]} 47. Kd5 {[%clk 0:01:12.9]} 47... f5 {[%clk
0:00:20.9]} 48. Ke5 {[%clk 0:01:13.3]} 48... f4 {[%clk 0:00:21.1]} 0-1

[Event "*** Titled Tuesday 3|2 Blitz"]
[Site "Chess.com"]
[Date "2016.07.05"]
[Round "8"]
[White "akinov-akinseye"]
[Black "CraiggoryC"]
[Result "1-0"]
[WhiteElo "1867"]
[BlackElo "2081"]
[TimeControl "180+2"]
[EndTime "12:43:12 PDT"]
[Termination "akinov-akinseye won on time"]

1. a4 {[%clk 0:03:01.9]} 1... e5 {[%clk 0:02:58.6]} 2. a5 {[%clk 0:03:00.7]}
2... a6 {[%clk 0:02:56.5]} 3. e3 {[%clk 0:02:58.8]} 3... d5 {[%clk 0:02:57.1]}
4. d4 {[%clk 0:02:57.6]} 4... Nc6 {[%clk 0:02:54]} 5. Nf3 {[%clk 0:02:54.8]}
5... e4 {[%clk 0:02:52.4]} 6. Ne5 {[%clk 0:02:53.6]} 6... Nxe5 {[%clk
0:02:41.6]} 7. dxe5 {[%clk 0:02:50.4]} 7... Ne7 {[%clk 0:02:33.2]} 8. c4 {[%clk
0:02:48.6]} 8... c6 {[%clk 0:02:28.5]} 9. Nc3 {[%clk 0:02:46.8]} 9... Be6 {[%clk
0:02:29.2]} 10. Be2 {[%clk 0:02:44.2]} 10... Ng6 {[%clk 0:02:22.4]} 11. cxd5
{[%clk 0:02:41.7]} 11... cxd5 {[%clk 0:02:22.9]} 12. Qa4+ {[%clk 0:02:39.7]}
12... Qd7 {[%clk 0:02:21.6]} 13. Qxd7+ {[%clk 0:02:38.3]} 13... Kxd7 {[%clk
0:02:19.8]} 14. O-O {[%clk 0:02:36.6]} 14... Bb4 {[%clk 0:02:14.3]} 15. Rd1
{[%clk 0:02:32.9]} 15... Bxc3 {[%clk 0:02:14]} 16. bxc3 {[%clk 0:02:30.1]} 16...
Rhd8 {[%clk 0:02:04.7]} 17. c4 {[%clk 0:02:27]} 17... Ke8 {[%clk 0:01:59.9]} 18.
cxd5 {[%clk 0:02:26.3]} 18... Rxd5 {[%clk 0:01:58]} 19. Rxd5 {[%clk 0:02:22.4]}
19... Bxd5 {[%clk 0:01:59.1]} 20. Bb2 {[%clk 0:02:20.3]} 20... Ke7 {[%clk
0:01:43.9]} 21. Rc1 {[%clk 0:02:14.8]} 21... Bc6 {[%clk 0:01:43.7]} 22. g3
{[%clk 0:02:11.5]} 22... Ke6 {[%clk 0:01:42.3]} 23. Bg4+ {[%clk 0:02:08.1]}
23... Ke7 {[%clk 0:01:35.9]} 24. Ba3+ {[%clk 0:02:03.1]} 24... Ke8 {[%clk
0:01:36.3]} 25. Bd6 {[%clk 0:02:01]} 25... Rd8 {[%clk 0:01:35.6]} 26. h4 {[%clk
0:01:56.7]} 26... f6 {[%clk 0:01:32.4]} 27. Bc7 {[%clk 0:01:54.4]} 27... Rd2
{[%clk 0:01:15.5]} 28. exf6 {[%clk 0:01:51.6]} 28... gxf6 {[%clk 0:01:15.9]} 29.
Bf5 {[%clk 0:01:52.6]} 29... Kf7 {[%clk 0:01:01.8]} 30. Rc4 {[%clk 0:01:50.3]}
30... Ne5 {[%clk 0:00:33.4]} 31. Bxe5 {[%clk 0:01:47.1]} 31... fxe5 {[%clk
0:00:33.9]} 32. Bxh7 {[%clk 0:01:45.6]} 32... Ra2 {[%clk 0:00:26.6]} 33. Rc5
{[%clk 0:01:43.8]} 33... Kg7 {[%clk 0:00:18.9]} 34. Bf5 {[%clk 0:01:41.8]} 34...
Kf6 {[%clk 0:00:20]} 35. g4 {[%clk 0:01:40]} 35... Ra1+ {[%clk 0:00:13]} 36. Kg2
{[%clk 0:01:38.1]} 36... Ra2 {[%clk 0:00:13.3]} 37. h5 {[%clk 0:01:36.6]} 37...
Ra3 {[%clk 0:00:04.2]} 38. h6 {[%clk 0:01:34.9]} 38... Rb3 {[%clk 0:00:04.9]}
39. h7 {[%clk 0:01:30.1]} 39... Kg7 {[%clk 0:00:06]} 40. Rxe5 {[%clk 0:01:27.3]}
40... Rb5 {[%clk 0:00:06.9]} 41. Re7+ {[%clk 0:01:25]} 41... Kf6 {[%clk
0:00:07.6]} 42. Rc7 {[%clk 0:01:21.7]} 1-0

[Event "*** Titled Tuesday 3|2 Blitz"]
[Site "Chess.com"]
[Date "2016.07.05"]
[Round "8"]
[White "Astaneh"]
[Black "David_Klein"]
[Result "1-0"]
[WhiteElo "2474"]
[BlackElo "2419"]
[TimeControl "180+2"]
[EndTime "12:43:20 PDT"]
[Termination "Astaneh won by checkmate"]

1. d4 {[%clk 0:03:01.9]} 1... Nf6 {[%clk 0:03:00.4]} 2. c4 {[%clk 0:03:02.1]}
2... e6 {[%clk 0:03:01.5]} 3. Nf3 {[%clk 0:03:03.3]} 3... d5 {[%clk 0:02:59.9]}
4. Nc3 {[%clk 0:02:56.6]} 4... dxc4 {[%clk 0:02:55.1]} 5. e3 {[%clk 0:02:53.7]}
5... a6 {[%clk 0:02:56.1]} 6. a4 {[%clk 0:02:52.7]} 6... b6 {[%clk 0:02:56.5]}
7. Bxc4 {[%clk 0:02:53.4]} 7... Bb7 {[%clk 0:02:58]} 8. O-O {[%clk 0:02:53.1]}
8... Nbd7 {[%clk 0:02:58.8]} 9. Qe2 {[%clk 0:02:53.8]} 9... c5 {[%clk
0:02:59.6]} 10. Rd1 {[%clk 0:02:54.4]} 10... cxd4 {[%clk 0:03:00.5]} 11. exd4
{[%clk 0:02:56]} 11... Be7 {[%clk 0:03:01.2]} 12. d5 {[%clk 0:02:55.6]} 12...
exd5 {[%clk 0:03:02.1]} 13. Nxd5 {[%clk 0:02:56.2]} 13... Nxd5 {[%clk
0:03:02.3]} 14. Bxd5 {[%clk 0:02:58.1]} 14... Qc7 {[%clk 0:02:34.4]} 15. Bxf7+
{[%clk 0:01:35.1]} 15... Kf8 {[%clk 0:02:34.2]} 16. Ba2 {[%clk 0:01:19.7]} 16...
Bf6 {[%clk 0:02:32.1]} 17. Ng5 {[%clk 0:01:04.2]} 17... Bxg5 {[%clk 0:02:17.9]}
18. Bxg5 {[%clk 0:00:57.6]} 18... Re8 {[%clk 0:02:18.2]} 19. Qd3 {[%clk
0:00:30.9]} 19... Qc6 {[%clk 0:01:31.9]} 20. Qg3 {[%clk 0:00:12.5]} 20... Nf6
{[%clk 0:01:19.6]} 21. Rac1 {[%clk 0:00:09.5]} 21... Qe4 {[%clk 0:00:42.7]} 22.
Qa3+ {[%clk 0:00:10.2]} 22... Re7 {[%clk 0:00:27.5]} 23. f3 {[%clk 0:00:10.5]}
23... Qg6 {[%clk 0:00:15.9]} 24. Rd8+ {[%clk 0:00:10.7]} 24... Qe8 {[%clk
0:00:14.2]} 25. Rxe8+ {[%clk 0:00:10.6]} 25... Kxe8 {[%clk 0:00:16.1]} 26. Bxf6
{[%clk 0:00:10.5]} 26... gxf6 {[%clk 0:00:17.2]} 27. Qd6 {[%clk 0:00:10.9]}
27... Re5 {[%clk 0:00:09.1]} 28. Qxf6 {[%clk 0:00:09.5]} 28... Re2 {[%clk
0:00:08.1]} 29. Qxh8+ {[%clk 0:00:08.8]} 29... Ke7 {[%clk 0:00:10]} 30. Qxh7+
{[%clk 0:00:09.9]} 30... Kd6 {[%clk 0:00:11.9]} 31. Qxb7 {[%clk 0:00:11.1]}
31... b5 {[%clk 0:00:13.6]} 32. Qxa6+ {[%clk 0:00:11.7]} 32... Ke5 {[%clk
0:00:15.1]} 33. Qxb5+ {[%clk 0:00:12.9]} 33... Kf4 {[%clk 0:00:17]} 34. Qxe2
{[%clk 0:00:13.9]} 34... Kg5 {[%clk 0:00:17.9]} 35. Rc4 {[%clk 0:00:15.2]} 35...
Kh5 {[%clk 0:00:19]} 36. Rg4 {[%clk 0:00:15.2]} 36... Kh6 {[%clk 0:00:20.3]} 37.
Qe6+ {[%clk 0:00:15.9]} 37... Kh7 {[%clk 0:00:21.6]} 38. Qg6+ {[%clk 0:00:17.1]}
38... Kh8 {[%clk 0:00:23]} 39. Qh5# {[%clk 0:00:18.3]} 1-0

[Event "*** Titled Tuesday 3|2 Blitz"]
[Site "Chess.com"]
[Date "2016.07.05"]
[Round "8"]
[White "wonderfultime"]
[Black "mwpchess"]
[Result "0-1"]
[WhiteElo "2666"]
[BlackElo "2457"]
[TimeControl "180+2"]
[EndTime "12:43:38 PDT"]
[Termination "mwpchess won by resignation"]

1. d4 {[%clk 0:03:01.9]} 1... Nf6 {[%clk 0:02:59.9]} 2. c4 {[%clk 0:03:03.4]}
2... e6 {[%clk 0:03:00.6]} 3. Nf3 {[%clk 0:03:04.5]} 3... d5 {[%clk 0:03:00.8]}
4. Nc3 {[%clk 0:03:05.7]} 4... dxc4 {[%clk 0:03:01]} 5. Bf4 {[%clk 0:03:06.4]}
5... Bb4 {[%clk 0:02:45.9]} 6. Qa4+ {[%clk 0:02:35.6]} 6... Nc6 {[%clk
0:02:45.5]} 7. Ne5 {[%clk 0:02:36.8]} 7... Qxd4 {[%clk 0:02:34.1]} 8. Rd1 {[%clk
0:00:56.4]} 8... Bxc3+ {[%clk 0:02:25.8]} 9. bxc3 {[%clk 0:00:57.6]} 9... Qxc3+
{[%clk 0:02:03.5]} 10. Rd2 {[%clk 0:00:57.9]} 10... Ne4 {[%clk 0:01:26.9]} 11.
Nxc6 {[%clk 0:00:26.5]} 11... Nxd2 {[%clk 0:01:21.9]} 12. Ne5+ {[%clk
0:00:26.6]} 12... c6 {[%clk 0:01:19.4]} 13. Bxd2 {[%clk 0:00:20.9]} 13... Qxe5
{[%clk 0:01:19.5]} 14. Qxc4 {[%clk 0:00:22.3]} 14... Qa1+ {[%clk 0:01:16]} 15.
Bc1 {[%clk 0:00:23.5]} 15... O-O {[%clk 0:01:15.6]} 16. e3 {[%clk 0:00:17]}
16... e5 {[%clk 0:01:14]} 17. Bd3 {[%clk 0:00:18.3]} 17... Be6 {[%clk
0:01:13.2]} 18. Qc2 {[%clk 0:00:19.6]} 18... Qxa2 {[%clk 0:01:00.2]} 19. Bb2
{[%clk 0:00:18.7]} 19... Qb3 {[%clk 0:00:57.8]} 20. Qb1 {[%clk 0:00:18.3]} 20...
Bc4 {[%clk 0:00:53.5]} 21. Bxh7+ {[%clk 0:00:18.7]} 21... Kh8 {[%clk 0:00:54.2]}
22. Qc2 {[%clk 0:00:15.4]} 22... Qxc2 {[%clk 0:00:52]} 23. Bxc2 {[%clk
0:00:17.3]} 23... f6 {[%clk 0:00:50.5]} 24. h4 {[%clk 0:00:17.1]} 24... Bg8
{[%clk 0:00:47.5]} 25. h5 {[%clk 0:00:17.3]} 25... Bh7 {[%clk 0:00:48.6]} 26.
Bb3 {[%clk 0:00:18.6]} 26... a5 {[%clk 0:00:47.2]} 27. Ba3 {[%clk 0:00:19.8]}
27... b5 {[%clk 0:00:43.9]} 28. Bxf8 {[%clk 0:00:18.9]} 28... Rxf8 {[%clk
0:00:44.3]} 29. Kd2 {[%clk 0:00:18.4]} 29... a4 {[%clk 0:00:44.6]} 30. Be6
{[%clk 0:00:19.3]} 30... Bg8 {[%clk 0:00:41]} 31. Bf5 {[%clk 0:00:14.7]} 31...
a3 {[%clk 0:00:37.3]} 32. Kc3 {[%clk 0:00:15]} 32... a2 {[%clk 0:00:37.1]} 33.
Kb2 {[%clk 0:00:14.5]} 33... Rd8 {[%clk 0:00:35.6]} 34. h6 {[%clk 0:00:13.3]}
34... gxh6 {[%clk 0:00:33.6]} 35. Rxh6+ {[%clk 0:00:15.2]} 35... Kg7 {[%clk
0:00:34.3]} 36. Rg6+ {[%clk 0:00:16.8]} 36... Kf7 {[%clk 0:00:28.1]} 37. Rg3
{[%clk 0:00:13]} 37... Rd2+ {[%clk 0:00:26.8]} 38. Ka1 {[%clk 0:00:14.5]} 38...
Kf8 {[%clk 0:00:26.8]} 39. Bg4 {[%clk 0:00:12.4]} 39... Rxf2 {[%clk 0:00:27.2]}
40. Rf3 {[%clk 0:00:12.4]} 40... Rxf3 {[%clk 0:00:28]} 41. Bxf3 {[%clk
0:00:14.3]} 41... c5 {[%clk 0:00:29.2]} 42. Bc6 {[%clk 0:00:15.3]} 42... b4
{[%clk 0:00:30.4]} 43. Kb2 {[%clk 0:00:16.4]} 43... Kg7 {[%clk 0:00:31.9]} 44.
g3 {[%clk 0:00:17.1]} 44... Kh6 {[%clk 0:00:32.7]} 0-1

[Event "*** Titled Tuesday 3|2 Blitz"]
[Site "Chess.com"]
[Date "2016.07.05"]
[Round "8"]
[White "Schemato"]
[Black "Makalexa"]
[Result "1-0"]
[WhiteElo "2216"]
[BlackElo "2168"]
[TimeControl "180+2"]
[EndTime "12:43:53 PDT"]
[Termination "Schemato won by resignation"]

1. c4 {[%clk 0:03:01.9]} 1... c5 {[%clk 0:02:59.3]} 2. g3 {[%clk 0:03:02.1]}
2... g6 {[%clk 0:02:59.4]} 3. Bg2 {[%clk 0:03:03.2]} 3... Bg7 {[%clk 0:03:01.1]}
4. Nc3 {[%clk 0:03:04.9]} 4... Nc6 {[%clk 0:03:00.5]} 5. Nf3 {[%clk 0:03:05.5]}
5... e6 {[%clk 0:03:01.3]} 6. d3 {[%clk 0:03:03.4]} 6... Nge7 {[%clk 0:03:01.5]}
7. Bg5 {[%clk 0:03:04]} 7... h6 {[%clk 0:03:00.9]} 8. Bd2 {[%clk 0:03:04.8]}
8... Nf5 {[%clk 0:03:00.3]} 9. Rb1 {[%clk 0:03:02.1]} 9... O-O {[%clk 0:02:58]}
10. O-O {[%clk 0:02:59.3]} 10... d5 {[%clk 0:02:57.3]} 11. a3 {[%clk 0:02:57.1]}
11... dxc4 {[%clk 0:02:50.8]} 12. dxc4 {[%clk 0:02:57.6]} 12... Ncd4 {[%clk
0:02:47.4]} 13. e3 {[%clk 0:02:53.8]} 13... Nxf3+ {[%clk 0:02:43.7]} 14. Bxf3
{[%clk 0:02:55.7]} 14... Rb8 {[%clk 0:02:42.1]} 15. Qc2 {[%clk 0:02:56.5]} 15...
a6 {[%clk 0:02:41.1]} 16. Rfd1 {[%clk 0:02:56.9]} 16... b5 {[%clk 0:02:40.3]}
17. Ne4 {[%clk 0:02:47.7]} 17... Qc7 {[%clk 0:02:35.9]} 18. Bc3 {[%clk
0:02:44.5]} 18... Bb7 {[%clk 0:02:30.5]} 19. Bxg7 {[%clk 0:02:43.9]} 19... Kxg7
{[%clk 0:02:29.4]} 20. Qc3+ {[%clk 0:02:39.8]} 20... e5 {[%clk 0:02:28.4]} 21.
cxb5 {[%clk 0:02:37.9]} 21... axb5 {[%clk 0:02:27.5]} 22. Rd2 {[%clk 0:02:20.8]}
22... Bxe4 {[%clk 0:02:23.5]} 23. Bxe4 {[%clk 0:02:21.1]} 23... Rfd8 {[%clk
0:02:12]} 24. Bxf5 {[%clk 0:02:19.1]} 24... gxf5 {[%clk 0:02:12.1]} 25. Rbd1
{[%clk 0:02:19.3]} 25... f6 {[%clk 0:01:29.7]} 26. Rxd8 {[%clk 0:02:07.8]} 26...
Rxd8 {[%clk 0:01:31.6]} 27. Rxd8 {[%clk 0:02:08.8]} 27... Qxd8 {[%clk 0:01:32]}
28. Qxc5 {[%clk 0:02:10.4]} 28... Qd1+ {[%clk 0:01:31.4]} 29. Kg2 {[%clk
0:02:11.3]} 29... e4 {[%clk 0:01:31.7]} 30. Qxf5 {[%clk 0:01:54]} 30... Qd3
{[%clk 0:01:25.5]} 31. h4 {[%clk 0:01:45.9]} 31... Kf7 {[%clk 0:01:13.2]} 32.
Qh7+ {[%clk 0:01:37.5]} 32... Ke6 {[%clk 0:01:12.1]} 33. Qxh6 {[%clk 0:01:39.4]}
33... Qc2 {[%clk 0:00:57.2]} 34. Qf4 {[%clk 0:01:22.5]} 34... f5 {[%clk
0:00:55.3]} 35. Qh6+ {[%clk 0:01:06.3]} 35... Kd5 {[%clk 0:00:54.1]} 36. Qf6
{[%clk 0:01:03.1]} 36... Kc4 {[%clk 0:00:42.6]} 37. Qxf5 {[%clk 0:00:56.9]}
37... Kd3 {[%clk 0:00:43.6]} 38. Qxb5+ {[%clk 0:00:53.9]} 38... Kd2 {[%clk
0:00:40.1]} 39. Qb4+ {[%clk 0:00:50.8]} 39... Kd1 {[%clk 0:00:39.2]} 40. Qd4+
{[%clk 0:00:47.5]} 40... Ke2 {[%clk 0:00:36.3]} 41. h5 {[%clk 0:00:35.1]} 41...
Qb1 {[%clk 0:00:14]} 42. Qc4+ {[%clk 0:00:30.9]} 42... Ke1 {[%clk 0:00:13.7]}
43. Qf1+ {[%clk 0:00:29.6]} 43... Kd2 {[%clk 0:00:13.5]} 44. Qxb1 {[%clk
0:00:27.7]} 44... Ke2 {[%clk 0:00:14.5]} 45. b4 {[%clk 0:00:28.1]} 1-0